fUSD/lending_fUSD_20241110
["ID","MTS","AMOUNT","RATE_DAILY","PERIOD"]
[341851223,1731253849309,-500.0,0.00013698,2]
[341851227,1731253849377,-539.70337099,0.00013698,2]
[341851229,1731253849387,-522.84448126,0.00013698,2]
[341851231,1731253849397,-500.0,0.00013698,2]
[341851233,1731253849408,-500.0,0.00013698,2]
[341851235,1731253849418,-500.0,0.00013698,2]
[341851237,1731253849428,-500.0,0.00013698,2]
[341851239,1731253849439,-500.0,0.00013698,2]
[341851241,1731253849449,-500.0,0.00013698,2]
[341851243,1731253849459,-500.0,0.00013698,2]
[341851245,1731253849468,-500.0,0.00013698,2]
[341851247,1731253849478,-500.0,0.00013698,2]
[341851249,1731253849487,-536.52720662,0.00013698,2]
[341851251,1731253849497,-500.0,0.00013698,2]
[341851253,1731253849506,-500.0,0.00013698,2]
[341851255,1731253849516,-500.0,0.00013698,2]
[341851257,1731253849526,-500.0,0.00013698,2]
[341851259,1731253849536,-500.0,0.00013698,2]
[341851261,1731253849546,-500.0,0.00013698,2]
[341851263,1731253849556,-500.0,0.00013698,2]
[341851265,1731253849566,-500.0,0.00013698,2]
[341851267,1731253849576,-109.85868053,0.00013698,2]
[341851271,1731253849610,-390.14131947,0.00013698,2]
[341851273,1731253849620,-500.0,0.00013698,2]
[341851275,1731253849630,-500.0,0.00013698,2]
[341851277,1731253849640,-500.0,0.00013698,2]
[341851279,1731253849650,-501.18276064,0.00013698,2]
[341851281,1731253849659,-500.0,0.00013698,2]
[341851284,1731253849670,-500.0,0.00013698,2]
[341851285,1731253849680,-500.0,0.00013698,2]
[341851288,1731253849690,-500.0,0.00013698,2]
[341851289,1731253849700,-500.0,0.00013698,2]
[341851291,1731253849709,-500.0,0.00013698,2]
[341851294,1731253849719,-500.0,0.00013698,2]
[341851296,1731253849730,-500.0,0.00013698,2]
[341851298,1731253849740,-500.0,0.00013698,2]
[341851300,1731253849750,-500.0,0.00013698,2]
[341851301,1731253849760,-500.0,0.00013698,2]
[341851304,1731253849770,-500.0,0.00013698,2]
[341851306,1731253849780,-500.0,0.00013698,2]
[341851308,1731253849790,-500.0,0.00013698,2]
[341851310,1731253849800,-500.0,0.00013698,2]
[341851312,1731253849810,-500.0,0.00013698,2]
[341851314,1731253849821,-500.0,0.00013698,2]
[341851315,1731253849830,-500.0,0.00013698,2]
[341851317,1731253849840,-441.35938799,0.00013698,2]
[341851319,1731253849850,-500.0,0.00013698,2]
[341851321,1731253849859,-500.0,0.00013698,2]
[341851323,1731253849868,-584.73751302,0.00013698,2]
[341851325,1731253849878,-500.0,0.00013698,2]
[341851327,1731253849888,-500.0,0.00013698,2]
[341851329,1731253849899,-500.0,0.00013698,2]
[341851331,1731253849910,-500.0,0.00013698,2]
[341851333,1731253849919,-500.0,0.00013698,2]
[341851335,1731253849929,-500.0,0.00013698,2]
[341851337,1731253849941,-530.34646934,0.00013698,2]
[341851339,1731253849950,-4105.67,0.00013698,2]
[341851341,1731253849960,-500.0,0.00013698,2]
[341851343,1731253849970,-4105.67,0.00013698,2]
[341851345,1731253849981,-4105.67,0.00013698,2]
[341851347,1731253849992,-4105.67,0.00013698,2]
[341851349,1731253850002,-4105.67,0.00013698,2]
[341851351,1731253850012,-4105.67,0.00013698,2]
[341851353,1731253850022,-4105.67,0.00013698,2]
[341851355,1731253850031,-4105.67,0.00013698,2]
[341851357,1731253850040,-4105.67,0.00013698,2]
[341851359,1731253850050,-4105.67,0.00013698,2]
[341851361,1731253850059,-4105.67,0.00013698,2]
[341851363,1731253850069,-4105.67,0.00013698,2]
[341851365,1731253850078,-4105.67,0.00013698,2]
[341851367,1731253850089,-4105.67,0.00013698,2]
[341851369,1731253850098,-4105.67,0.00013698,2]
[341851371,1731253850107,-4105.67,0.00013698,2]
[341851372,1731253850117,-500.0,0.00013698,2]
[341851375,1731253850126,-4105.67,0.00013698,2]
[341851377,1731253850136,-4564.41,0.00013698,2]
[341851379,1731253850145,-500.0,0.00013698,2]
[341851380,1731253850155,-4105.67,0.00013698,2]
[341851383,1731253850164,-4564.41,0.00013698,2]
[341851384,1731253850173,-4105.67,0.00013698,2]
[341851386,1731253850183,-500.0,0.00013698,2]
[341851388,1731253850192,-4564.41,0.00013698,2]
[341851390,1731253850201,-500.0,0.00013698,2]
[341851392,1731253850211,-4564.41,0.00013698,2]
[341851394,1731253850220,-4105.67,0.00013698,2]
[341851396,1731253850230,-500.0,0.00013698,2]
[341851398,1731253850239,-4105.67,0.00013698,2]
[341851400,1731253850249,-500.0,0.00013698,2]
[341851402,1731253850258,-4564.41,0.00013698,2]
[341851404,1731253850268,-608.16,0.00013698,2]
[341851406,1731253850277,-4105.67,0.00013698,2]
[341851408,1731253850287,-4564.41,0.00013698,2]
[341851410,1731253850296,-4105.67,0.00013698,2]
[341851412,1731253850305,-4105.69545451,0.00013698,2]
[341851414,1731253850315,-4564.41,0.00013698,2]
[341851416,1731253850325,-4564.41,0.00013698,2]
[341851418,1731253850334,-4564.41,0.00013698,2]
[341851420,1731253850346,-4564.41,0.00013698,2]
[341851422,1731253850355,-500.0,0.00013698,2]
[341851424,1731253850364,-4564.41,0.00013698,2]
[341851426,1731253850374,-4564.41,0.00013698,2]
[341851428,1731253850383,-4564.41,0.00013698,2]
[341851430,1731253850392,-667.89,0.00013698,2]
[341851431,1731253850401,-667.89,0.00013698,2]
[341851432,1731253850410,-4564.41,0.00013698,2]
[341851433,1731253850420,-4564.41,0.00013698,2]
[341851434,1731253850429,-667.89,0.00013698,2]
[341851435,1731253850439,-4564.41,0.00013698,2]
[341851436,1731253850448,-667.89,0.00013698,2]
[341851437,1731253850457,-667.89,0.00013698,2]
[341851438,1731253850467,-4564.41,0.00013698,2]
[341851439,1731253850477,-667.89,0.00013698,2]
[341851440,1731253850486,-4564.41,0.00013698,2]
[341851441,1731253850496,-667.89,0.00013698,2]
[341851442,1731253850506,-4564.41,0.00013698,2]
[341851443,1731253850517,-667.89,0.00013698,2]
[341851444,1731253850526,-4564.41,0.00013698,2]
[341851445,1731253850535,-500.0,0.00013698,2]
[341851446,1731253850545,-667.89,0.00013698,2]
[341851447,1731253850554,-1297.54277199,0.00013698,2]
[341851593,1731253852363,1144.54085429,0.00012274,2]
[341851968,1731253857356,1144.54085427,0.0001229,2]
[341852343,1731253862339,1144.54085427,0.00012305,2]
[341852345,1731254311752,150.0,0.00010959,2]
[341852346,1731254311773,131.02,0.00010959,2]
[341852347,1731254322215,150.0,0.00010959,2]
[341852348,1731254322238,121.79,0.00010959,2]
[341852350,1731254332917,150.0,0.00010959,2]
[341852351,1731254332939,126.49,0.00010959,2]
[341852352,1731254343585,150.0,0.00010959,2]
[341852353,1731254343607,105.41,0.00010959,2]
[341852354,1731254354359,150.0,0.00010959,2]
[341852355,1731254354380,82.27,0.00010959,2]
[341852356,1731254365168,150.0,0.00010959,2]
[341852357,1731254365189,43.56,0.00010959,2]
[341852358,1731254375683,161.3,0.00010959,2]
[341852359,1731254386237,806.52,0.00010959,2]
[341852360,1731254403082,150.0,0.00010959,2]
[341852361,1731254403303,150.0,0.00010959,2]
[341852362,1731254403612,150.0,0.00010959,2]
[341852363,1731254424580,150.0,0.0001004,2]
[341852364,1731254424602,247.83,0.0001004,2]
[341852365,1731254424627,1787.33,0.0001004,2]
[341852366,1731254483425,160.0,0.00027,60]
[341852367,1731254508750,250.0,0.00027,60]
[341852368,1731254528447,330.0,0.00027,60]
[341852370,1731254562235,1415.66,0.00011948,2]
[341852371,1731254573700,1000.0,0.00011949,2]
[341852372,1731254625253,1874.96,0.00011868,2]
[341852374,1731254647974,355.77,0.00011868,2]
[341852375,1731254656592,250.0,0.00011857,2]
[341852377,1731254683120,5241.28,0.00011961,2]
[341852378,1731254712313,14370.47,0.00013348,7]
[341852379,1731254741851,1226.1,0.0001183,2]
[341852380,1731254750678,150.0,0.0001183,2]
[341852381,1731254833038,151.15,9.486e-05,2]
[341852382,1731254833245,151.15,0.00011858,2]
[341852383,1731254841748,2236.36,0.00011825,2]
[341852384,1731254879225,250.0,0.00011827,2]
[341852385,1731254882334,256.0,0.00011835,2]
[341852402,1731254923405,226.61,0.00011866,2]
[341852407,1731254945008,163.51,0.00011868,2]
[341852412,1731254957167,-444.77588666,0.00012204,2]
[341852413,1731254957189,-2113.8343131,0.00012254,2]
[341852414,1731254957215,-1915.84440024,0.00012304,2]
[341852415,1731254960184,-269.31559976,0.00012304,2]
[341852416,1731254974344,212.08550162,0.00012258,2]
[341852423,1731255006082,2537.77,0.00012081,2]
[341852432,1731255031408,-26984.4554,0.00012354,2]
[341852434,1731255031418,-158.44,0.00012358,2]
[341852436,1731255031428,-158.44,0.00012369,2]
[341852438,1731255031437,-158.44,0.00012381,2]
[341852440,1731255031447,-158.44,0.00012392,2]
[341852442,1731255031456,-158.44,0.00012403,2]
[341852444,1731255031466,-158.44,0.00012414,2]
[341852446,1731255031475,-158.44,0.00012426,2]
[341852447,1731255031484,-67.04504107,0.00012426,2]
[341852448,1731255031496,-96.52495893,0.00012426,2]
[341852449,1731255031506,-158.44,0.00012437,2]
[341852450,1731255031516,-158.44,0.00012448,2]
[341852451,1731255031525,-150.0,0.00012453,2]
[341852452,1731255031535,-430.31043461,0.00012457,2]
[341852453,1731255031546,-1151.55012815,0.00012457,2]
[341852454,1731255031558,-232.06943724,0.00012457,2]
[341852455,1731255031566,-24.63166506,0.00012459,2]
[341852456,1731255031580,-133.80833494,0.00012459,2]
[341852457,1731255031589,-355.77,0.00012461,2]
[341852458,1731255031599,-158.44,0.00012471,2]
[341852459,1731255031608,-158.44,0.00012482,2]
[341852460,1731255031618,-23900.0,0.00012567,2]
[341852461,1731255031627,-544.0,0.00012645,2]
[341852462,1731255031637,-200.0,0.000129,4]
[341852463,1731255031646,-355.77,0.00013055,2]
[341852464,1731255031655,-150.0,0.00013078,2]
[341852465,1731255031665,-555.35,0.00013096,2]
[341852466,1731255031675,-855.76,0.00013096,2]
[341852467,1731255031685,-1524.66,0.00013096,2]
[341852468,1731255031695,-864.64,0.00013096,2]
[341852469,1731255031704,-500.0,0.000131,4]
[341852470,1731255031713,-800.0,0.000132,4]
[341852471,1731255031722,-1822.9410108,0.00013278,2]
[341852472,1731255031732,-2500.0,0.00013278,2]
[341852473,1731255031741,-232.5284,0.00013278,2]
[341852474,1731255031750,-12190.545,0.00013278,2]
[341852475,1731255031760,-10874.8489,0.00013278,2]
[341852476,1731255031770,-1000.0,0.000133,4]
[341852477,1731255031779,-2500.0,0.00013302,2]
[341852478,1731255031789,-1822.94101078,0.00013314,2]
[341852479,1731255031798,-256.0,0.00013315,2]
[341852480,1731255031808,-1822.94101078,0.00013349,2]
[341852481,1731255031817,-574.99999999,0.00013369,2]
[341852482,1731255031827,-362.16,0.0001337,2]
[341852483,1731255031836,-300.0,0.0001337,2]
[341852484,1731255031846,-150.0,0.0001337,2]
[341852485,1731255031855,-150.0,0.0001337,2]
[341852486,1731255031864,-432.99,0.0001337,2]
[341852487,1731255031874,-150.0,0.0001337,2]
[341852488,1731255031883,-362.16,0.0001337,2]
[341852489,1731255031892,-432.99,0.0001337,2]
[341852490,1731255031901,-150.0,0.0001337,2]
[341852491,1731255031910,-432.99,0.0001337,2]
[341852492,1731255031919,-150.0,0.0001337,2]
[341852493,1731255031928,-362.16,0.0001337,2]
[341852494,1731255031938,-432.99,0.0001337,2]
[341852495,1731255031947,-362.16,0.0001337,2]
[341852496,1731255031956,-150.0,0.0001337,2]
[341852497,1731255031966,-150.0,0.0001337,2]
[341852498,1731255031978,-432.99,0.0001337,2]
[341852499,1731255031987,-362.16,0.0001337,2]
[341852500,1731255031998,-150.0,0.0001337,2]
[341852501,1731255032007,-432.99,0.0001337,2]
[341852502,1731255032022,-362.16,0.0001337,2]
[341852503,1731255032031,-150.0,0.0001337,2]
[341852504,1731255032040,-362.16,0.0001337,2]
[341852505,1731255032050,-362.16,0.0001337,2]
[341852506,1731255032060,-7154.82927831,0.00013377,2]
[341852507,1731255032068,-163.12376136,0.00013378,2]
[341852508,1731255032078,-100000.0,0.00013378,2]
[341852509,1731255032088,-8992.571,0.00013378,2]
[341852510,1731255032097,-1291.1638,0.00013378,2]
[341852511,1731255032106,-5000.0,0.00013378,2]
[341852512,1731255032115,-1822.94101078,0.00013385,2]
[341852513,1731255032124,-1628.12830969,0.00013398,2]
[341852514,1731255032134,-1029.0,0.000134,2]
[341852515,1731255032144,-1300.0,0.000134,4]
[341852516,1731255032153,-163.12376131,0.00013415,2]
[341852517,1731255032162,-1822.94101078,0.0001342,2]
[341852518,1731255032172,-1254.0,0.00013424,2]
[341852519,1731255032181,-453.0,0.00013424,2]
[341852520,1731255032191,-559.0,0.00013424,2]
[341852521,1731255032200,-1990.0,0.00013424,2]
[341852522,1731255032209,-150.0,0.00013424,2]
[341852523,1731255032218,-1922.0,0.00013424,2]
[341852524,1731255032227,-1259.0,0.00013424,2]
[341852525,1731255032237,-921.0,0.00013424,2]
[341852526,1731255032246,-2910.0,0.00013424,2]
[341852527,1731255032256,-814.0,0.00013424,2]
[341852528,1731255032267,-3465.0,0.00013424,2]
[341852529,1731255032279,-1000.0,0.00013443,2]
[341852530,1731255032290,-163.12376131,0.00013451,2]
[341852531,1731255032299,-1822.94101078,0.00013456,2]
[341852532,1731255032308,-150.28575215,0.00013468,2]
[341852533,1731255032319,-237.98121484,0.00013477,2]
[341852534,1731255032328,-500.0,0.00013477,2]
[341852535,1731255032339,-500.0,0.00013477,2]
[341852536,1731255032348,-200.49300911,0.00013477,2]
[341852537,1731255032359,-500.0,0.00013477,2]
[341852538,1731255032369,-500.0,0.00013477,2]
[341852539,1731255032378,-500.0,0.00013477,2]
[341852540,1731255032387,-500.0,0.00013477,2]
[341852541,1731255032396,-500.0,0.00013477,2]
[341852542,1731255032406,-500.0,0.00013477,2]
[341852543,1731255032415,-500.0,0.00013477,2]
[341852544,1731255032426,-500.0,0.00013477,2]
[341852545,1731255032435,-500.0,0.00013477,2]
[341852546,1731255032447,-500.0,0.00013477,2]
[341852547,1731255032456,-500.0,0.00013477,2]
[341852548,1731255032467,-550.0,0.00013477,2]
[341852549,1731255032477,-500.0,0.00013477,2]
[341852550,1731255032488,-500.0,0.00013477,2]
[341852551,1731255032498,-247.2808362,0.00013477,2]
[341852552,1731255032508,-128779.4627,0.00013478,2]
[341852553,1731255032519,-185386.07556449,0.00013478,2]
[341852554,1731255032534,-149267.61433551,0.00013478,2]
[341852555,1731255032544,-500.0,0.00013478,2]
[341852556,1731255032555,-1468.5218,0.00013478,2]
[341852557,1731255032565,-97186.70769999,0.00013478,2]
[341852558,1731255032577,-784.38360001,0.00013478,2]
[341852559,1731255032587,-1000.0,0.00013478,2]
[341852560,1731255032598,-163.12376131,0.00013488,2]
[341852561,1731255032608,-1822.94101078,0.00013491,2]
[341852562,1731255032618,-200.0,0.000135,4]
[341852563,1731255032628,-1000.0,0.000135,2]
[341852564,1731255032637,-163.12376131,0.00013525,2]
[341852565,1731255032646,-1822.94101078,0.00013527,2]
[341852566,1731255032655,-255.0,0.00013548,2]
[341852567,1731255032664,-3760.422,0.00013559,2]
[341852568,1731255032674,-279.756,0.00013559,2]
[341852569,1731255032683,-170.244,0.00013559,2]
[341852570,1731255032692,-5927.0,0.00013559,2]
[341852571,1731255032702,-1159.0,0.00013559,2]
[341852572,1731255032712,-22118.23683275,0.00013561,2]
[341852573,1731255032722,-1279.0,0.00013561,2]
[341852574,1731255032732,-163.12376131,0.00013561,2]
[341852575,1731255032742,-1822.94101078,0.00013562,2]
[341852576,1731255032752,-5529.55920821,0.00013563,2]
[341852577,1731255032762,-588.15558419,0.00013564,2]
[341852578,1731255032772,-796.64940847,0.00013567,2]
[341852579,1731255032783,-212.24633883,0.00013567,2]
[341852580,1731255032793,-606.41811086,0.0001357,2]
[341852581,1731255032802,-606.41811086,0.00013571,2]
[341852582,1731255032811,-588.15558419,0.00013571,2]
[341852583,1731255032821,-285536.83603226,0.00013572,2]
[341852584,1731255032833,-5358.28634486,0.00013572,2]
[341852585,1731255032866,-609.05203972,0.00013572,2]
[341852586,1731255032899,-993.22696295,0.00013572,2]
[341852587,1731255032912,-1450.0,0.00013572,2]
[341852588,1731255032956,-1075.696575,0.00013572,2]
[341852589,1731255032969,-1645.66492994,0.00013572,2]
[341852598,1731255037477,-1091.0,0.00013559,2]
[341852599,1731255037487,-77450.85547244,0.00013572,2]
[341852600,1731255037743,-9342.46809932,0.00013572,2]
[341852601,1731255037756,-1373.78967555,0.00013572,2]
[341852602,1731255037769,-797.13922399,0.00013572,2]
[341852603,1731255037781,-890.19989277,0.00013572,2]
[341852604,1731255037960,-1516.34563088,0.00013572,2]
[341852605,1731255037972,-111468.47951629,0.00013572,2]
[341852606,1731255037982,-588.15558419,0.00013572,2]
[341852607,1731255037992,-5529.55920821,0.00013572,2]
[341852608,1731255038002,-499508.04039597,0.00013573,2]
[341852609,1731255038012,-5529.55920821,0.00013574,2]
[341852610,1731255038024,-9002.38138998,0.00013575,2]
[341852611,1731255038033,-588.15558419,0.00013575,2]
[341852612,1731255038043,-499508.04039597,0.00013576,2]
[341852613,1731255038053,-150.0,0.00013576,2]
[341852614,1731255038063,-22118.23683275,0.00013577,2]
[341852615,1731255038072,-23698.11089221,0.00013577,2]
[341852616,1731255038082,-23698.11089221,0.00013578,2]
[341852617,1731255038092,-5529.55920821,0.00013578,2]
[341852618,1731255038102,-23698.11089221,0.00013579,2]
[341852619,1731255038113,-9002.38138998,0.0001358,2]
[341852620,1731255038123,-495257.58333652,0.00013582,2]
[341852754,1731255039611,-3491.11023332,0.00013582,2]
[341852760,1731255039663,-759.34682613,0.00013582,2]
[341852762,1731255039673,-523.0470396,0.00013582,2]
[341852765,1731255039685,-502.01548909,0.00013582,2]
[341852767,1731255039703,-22673.04836352,0.00013582,2]
[341852769,1731255039713,-796.64940847,0.00013582,2]
[341852771,1731255039723,-634.91261341,0.00013585,2]
[341852776,1731255039758,-161.73679506,0.00013585,2]
[341852778,1731255039769,-140.46740492,0.00013585,2]
[341853072,1731255042618,-8861.91398506,0.00013585,2]
[341853074,1731255042627,-588.15558419,0.00013585,2]
[341853076,1731255042637,-606.41811086,0.00013586,2]
[341853078,1731255042648,-11018.51231989,0.00013586,2]
[341853080,1731255042659,-2331.73526,0.00013586,2]
[341853086,1731255042700,-8767.98925286,0.00013586,2]
[341853088,1731255042709,-606.41811086,0.00013587,2]
[341853090,1731255042718,-22118.23683275,0.00013588,2]
[341853092,1731255042727,-606.41811086,0.00013589,2]
[341853094,1731255042736,-133132.7886641,0.00013589,2]
[341853104,1731255042832,-5171.9317492,0.00013589,2]
[341853111,1731255042888,-6953.79514644,0.00013589,2]
[341853364,1731255045432,-1439.79704897,0.00013589,2]
[341853371,1731255045487,-662.84544259,0.00013589,2]
[341853373,1731255045499,-1142.14735418,0.00013589,2]
[341853375,1731255045511,-895.89559482,0.00013589,2]
[341853377,1731255045524,-837.5883232,0.00013589,2]
[341853382,1731255045553,-349271.25107247,0.00013589,2]
[341853384,1731255045562,-317058.40442389,0.0001359,2]
[341853392,1731255045637,-100999.88660178,0.0001359,2]
[341853394,1731255045649,-3318.10013,0.0001359,2]
[341853397,1731255045669,-78131.6492403,0.0001359,2]
[341853399,1731255045678,-588.15558419,0.0001359,2]
[341853401,1731255045688,-212.24633883,0.0001359,2]
[341853403,1731255045698,-914.42301237,0.00013591,2]
[341853407,1731255045724,-19898.72718955,0.00013591,2]
[341853410,1731255045764,-398.645,0.00013591,2]
[341853412,1731255045780,-253.9149331,0.00013591,2]
[341853419,1731255045832,-2232.40075719,0.00013591,2]
[341853421,1731255045842,-606.41811086,0.00013592,2]
[341853423,1731255045852,-2126.82573404,0.00013593,2]
[341853425,1731255045861,-5172.06387583,0.00013593,2]
[341854575,1731255153974,1565.22,0.00010786,2]
[341854576,1731255153999,493.96,0.00010786,2]
[341854577,1731255198858,6859.90732252,0.00013278,7]
[341854578,1731255337182,1000.0,0.000215,30]
[341854583,1731255519037,150.0,0.000131,5]
[341854585,1731255605183,151.15,9.927e-05,2]
[341854586,1731255693601,213.0,0.000269,120]
[341854589,1731255920219,600.0,9e-05,2]
[341854590,1731255933257,5100.0,0.00021,23]
[341854591,1731255933539,1988.26,0.00010437,2]
[341854592,1731255935747,150.38779114,0.0001,2]
[341854593,1731255935830,3107.51596964,0.00013559,10]
[341854594,1731255936092,161.59724698,0.00013559,10]
[341854595,1731255936327,1185.22072614,0.00013559,10]
[341854596,1731255937594,460.11084899,9e-05,2]
[341854597,1731255942499,5100.0,0.00021,24]
[341854598,1731255947517,155.651,0.0002376,60]
[341854599,1731255950202,5100.0,0.00021,25]
[341854600,1731255956772,750.0,6.94e-05,2]
[341854601,1731255961918,5100.0,0.00021,26]
[341854602,1731256019762,5100.0,0.00021,27]
[341854612,1731256082101,406.13135987,0.0001,2]
[341854613,1731256082127,1378.05707588,0.0001,2]
[341854614,1731256088309,632.25037807,0.00027,60]
[341854616,1731256157110,5100.0,0.00021,28]
[341854620,1731256165735,-177.67,0.00012154,2]
[341854621,1731256165760,-1000.0,0.00012201,2]
[341854624,1731256203385,150.0,0.00012201,2]
[341854627,1731256212229,1963.06,0.00012197,2]
[341854630,1731256229882,820.71,0.00012281,2]
[341854641,1731256231697,-300.0,0.00012351,2]
[341854642,1731256231708,-7335.552672,0.00012352,2]
[341854643,1731256231719,-16564.447328,0.00012352,2]
[341854644,1731256231731,-646.4,0.00012352,2]
[341854645,1731256231740,-26371.8,0.00012376,2]
[341854646,1731256231751,-412.79,0.00012377,2]
[341854647,1731256231761,-200.0,0.00012402,2]
[341854648,1731256231771,-163.51,0.00012409,2]
[341854649,1731256231783,-250.0,0.00012562,2]
[341854650,1731256231793,-150.0,0.00012566,2]
[341854651,1731256231803,-1988.26,0.00012701,2]
[341854652,1731256231813,-177.67,0.00012761,2]
[341854653,1731256231823,-155.712,0.00013,2]
[341854654,1731256231833,-4210.25020709,0.00013,2]
[341854655,1731256231842,-150.0,0.00013,2]
[341854656,1731256231852,-773.80636167,0.00013178,2]
[341854657,1731256231861,-773.80636167,0.00013225,2]
[341854658,1731256231871,-8058.0785746,0.00013258,2]
[341854659,1731256231880,-773.80636167,0.00013271,2]
[341854660,1731256231890,-372.2985772,0.00013274,2]
[341854661,1731256231899,-500.0,0.00013277,2]
[341854662,1731256231908,-436.78128791,0.00013277,2]
[341854663,1731256231918,-500.0,0.00013278,2]
[341854664,1731256231929,-2945.2955,0.00013278,2]
[341854665,1731256231938,-23607.55497322,0.00013278,2]
[341854666,1731256231957,-105171.90772678,0.00013278,2]
[341854667,1731256231967,-37873.4214,0.00013278,2]
[341854668,1731256231978,-100000.0,0.00013278,2]
[341854669,1731256231987,-1000.0,0.00013278,2]
[341854670,1731256231997,-1461.0,0.000133,2]
[341854671,1731256232006,-773.80636167,0.00013318,2]
[341854672,1731256232016,-773.80636167,0.00013365,2]
[341854674,1731256232026,-177.67,0.00013369,2]
[341854675,1731256232035,-865.62,0.0001337,2]
[341854676,1731256232045,-150.0,0.0001337,2]
[341854677,1731256232055,-1000.0,0.000134,2]
[341854678,1731256232064,-773.80636167,0.00013411,2]
[341854679,1731256232073,-773.80636167,0.00013458,2]
[341854680,1731256232083,-5000.0,0.0001348,2]
[341854681,1731256232092,-68999.00205521,0.00013498,2]
[341854682,1731256232102,-1000.0,0.000135,2]
[341854683,1731256232111,-773.80636167,0.00013505,2]
[341854684,1731256232121,-5927.0,0.00013538,2]
[341854685,1731256232130,-631.0,0.00013538,2]
[341854686,1731256232140,-2362.0,0.00013543,2]
[341854687,1731256232149,-773.80636167,0.00013551,2]
[341854688,1731256232159,-420.0,0.00013554,2]
[341854689,1731256232168,-57627.23156256,0.0001356,2]
[341854690,1731256232179,-1136.69774868,0.00013563,2]
[341854691,1731256232189,-5717.25267688,0.00013563,2]
[341854692,1731256232199,-467.57666661,0.00013565,2]
[341854693,1731256232209,-265.54980284,0.00013566,2]
[341854694,1731256232220,-1136.69774868,0.00013567,2]
[341854695,1731256232230,-467.57666661,0.00013567,2]
[341854696,1731256232240,-57627.23156256,0.00013568,2]
[341854697,1731256232250,-57627.23156256,0.00013569,2]
[341854698,1731256232260,-366.17312645,0.0001357,2]
[341854699,1731256232270,-467.57666661,0.0001357,2]
[341854700,1731256232279,-1096.6773,0.00013571,2]
[341854701,1731256232290,-200.0,0.00013571,2]
[341854702,1731256232299,-200.0,0.00013572,2]
[341854703,1731256232309,-500.0,0.00013574,2]
[341854704,1731256232319,-150.0,0.00013574,2]
[341854705,1731256232328,-1136.69774868,0.00013574,2]
[341854706,1731256232338,-3703.71084879,0.00013574,2]
[341854707,1731256232347,-41098.6934088,0.00013574,2]
[341854708,1731256232362,-16528.53815376,0.00013574,2]
[341854709,1731256232372,-265.54980284,0.00013575,2]
[341854710,1731256232381,-265.54980284,0.00013576,2]
[341854711,1731256232391,-467.57666661,0.00013578,2]
[341854712,1731256232400,-1136.69774868,0.0001358,2]
[341854713,1731256232411,-1136.69774868,0.0001358,2]
[341854714,1731256232422,-158123.69191158,0.0001358,2]
[341854715,1731256232434,-346.93474401,0.0001358,2]
[341854716,1731256232511,-500.0,0.00013497,2]
[341854717,1731256232521,-223.44936871,0.00013497,2]
[341854718,1731256232530,-233.26402777,0.0001358,2]
[341854719,1731256232542,-692.70000002,0.0001358,2]
[341854720,1731256233869,150.0,0.00012318,2]
[341854723,1731256235352,-163.12376131,0.00013178,2]
[341854724,1731256235362,-500.0,0.00013497,2]
[341854725,1731256235371,-500.0,0.00013497,2]
[341854726,1731256235380,-500.0,0.00013497,2]
[341854727,1731256235389,-500.0,0.00013497,2]
[341854728,1731256235398,-500.0,0.00013497,2]
[341854729,1731256235408,-500.0,0.00013497,2]
[341854730,1731256235417,-500.0,0.00013497,2]